[Event "Titled Tuesday Blitz November 14 Early 2023"]
[White "Spichkin, Alexander"]
[Black "Azali, Tannaz"]
[WhiteFideId "4144074"]
[BlackFideId "12537721"]
[WhiteElo "2315"]
[BlackElo "2387"]
[Result "1-0"]
[Round "10"]
[TimeControl "180+1"]
[Date "2023.11.14"]
[WhiteClock "0:00:08"]
[BlackClock "0:00:04"]
[Board "115"]

1. f4 {[%clk 0:03:00]}  d5 {[%clk 0:02:58]} 2. Nf3 {[%clk 0:03:00]}  c5 {[%clk 0:02:58]} 3. e3 {[%clk 0:03:00]}  Nc6 {[%clk 0:02:59]} 4. Bb5 {[%clk 0:02:59]}  Bd7 {[%clk 0:02:57]} 5. O-O {[%clk 0:02:58]}  e6 {[%clk 0:02:56]} 6. b3 {[%clk 0:02:53]}  Bd6 {[%clk 0:02:55]} 7. Bb2 {[%clk 0:02:53]}  Nf6 {[%clk 0:02:54]} 8. Bxc6 {[%clk 0:02:50]}  Bxc6 {[%clk 0:02:54]} 9. Ne5 {[%clk 0:02:50]}  Qc7 {[%clk 0:02:54]} 10. Rf3 {[%clk 0:02:46]}  O-O-O {[%clk 0:02:48]} 11. Rg3 {[%clk 0:02:46]}  Rhg8 {[%clk 0:02:44]} 12. Nxc6 {[%clk 0:02:39]}  Qxc6 {[%clk 0:02:44]} 13. Rxg7 {[%clk 0:02:39]}  Rxg7 {[%clk 0:02:38]} 14. Bxf6 {[%clk 0:02:34]}  Rgg8 {[%clk 0:02:31]} 15. Bxd8 {[%clk 0:02:34]}  Kxd8 {[%clk 0:02:31]} 16. d4 {[%clk 0:02:31]}  cxd4 {[%clk 0:02:28]} 17. Qxd4 {[%clk 0:02:19]}  Qxc2 {[%clk 0:02:26]} 18. Nd2 {[%clk 0:02:16]}  Bc5 {[%clk 0:02:17]} 19. Qf6+ {[%clk 0:01:58]}  Ke8 {[%clk 0:02:16]} 20. Qe5 {[%clk 0:01:38]}  Rg6 {[%clk 0:01:10]} 21. f5 {[%clk 0:01:23]}  Rg5 {[%clk 0:00:26]} 22. Qb8+ {[%clk 0:01:11]}  Ke7 {[%clk 0:00:25]} 23. Qxb7+ {[%clk 0:01:04]}  Kf6 {[%clk 0:00:20]} 24. fxe6 {[%clk 0:01:02]}  Bxe3+ {[%clk 0:00:20]} 25. Kh1 {[%clk 0:01:02]}  fxe6 {[%clk 0:00:18]} 26. Rf1+ {[%clk 0:01:01]}  Rf5 {[%clk 0:00:16]} 27. Rxf5+ {[%clk 0:00:54]}  Qxf5 {[%clk 0:00:17]} 28. Qc8 {[%clk 0:00:27]}  Bxd2 {[%clk 0:00:16]} 29. Qf8+ {[%clk 0:00:27]}  Ke5 {[%clk 0:00:17]} 30. Qg7+ {[%clk 0:00:24]}  Ke4 {[%clk 0:00:16]} 31. Qa1 {[%clk 0:00:20]}  Qf2 {[%clk 0:00:14]} 32. Qb1+ {[%clk 0:00:20]}  Ke5 {[%clk 0:00:14]} 33. h3 {[%clk 0:00:16]}  Be3 {[%clk 0:00:14]} 34. Kh2 {[%clk 0:00:14]}  Bf4+ {[%clk 0:00:13]} 35. Kh1 {[%clk 0:00:15]}  Qg3 {[%clk 0:00:13]} 36. Qb2+ {[%clk 0:00:12]}  Kf5 {[%clk 0:00:12]} 37. Qc2+ {[%clk 0:00:12]}  Kf6 {[%clk 0:00:12]} 38. Kg1 {[%clk 0:00:10]}  Qh2+ {[%clk 0:00:10]} 39. Kf1 {[%clk 0:00:10]}  Qh1+ {[%clk 0:00:09]} 40. Kf2 {[%clk 0:00:10]}  Qc1 {[%clk 0:00:08]} 41. Qxh7 {[%clk 0:00:09]}  Qe3+ {[%clk 0:00:08]} 42. Kf1 {[%clk 0:00:10]}  Qd3+ {[%clk 0:00:04]} 43. Qxd3 {[%clk 0:00:08]} 1-0


[Site "https://www.chess.com"]

[Event "Titled Tuesday Blitz November 14 Early 2023"]
[White "Skaric, Djuro"]
[Black "Sarkar, Justin"]
[WhiteFideId "934569"]
[BlackFideId "2010011"]
[WhiteElo "2368"]
[BlackElo "2259"]
[Result "1/2-1/2"]
[Round "10"]
[TimeControl "180+1"]
[Date "2023.11.14"]
[WhiteClock "0:00:38"]
[BlackClock "0:00:08"]
[Board "117"]

1. g3 {[%clk 0:03:00]}  Nf6 {[%clk 0:02:32]} 2. Bg2 {[%clk 0:02:57]}  e6 {[%clk 0:02:31]} 3. d3 {[%clk 0:02:57]}  d5 {[%clk 0:02:26]} 4. Nf3 {[%clk 0:02:57]}  c5 {[%clk 0:02:21]} 5. O-O {[%clk 0:02:58]}  Nc6 {[%clk 0:02:19]} 6. h3 {[%clk 0:02:59]}  Be7 {[%clk 0:02:16]} 7. Nc3 {[%clk 0:02:59]}  d4 {[%clk 0:02:09]} 8. Ne4 {[%clk 0:02:58]}  Nxe4 {[%clk 0:02:08]} 9. dxe4 {[%clk 0:02:59]}  e5 {[%clk 0:02:07]} 10. Ne1 {[%clk 0:02:59]}  O-O {[%clk 0:02:03]} 11. f4 {[%clk 0:02:59]}  f5 {[%clk 0:02:01]} 12. exf5 {[%clk 0:02:58]}  Bxf5 {[%clk 0:01:57]} 13. e4 {[%clk 0:02:58]}  dxe3 {[%clk 0:01:54]} 14. Bxe3 {[%clk 0:02:57]}  exf4 {[%clk 0:01:47]} 15. Bxf4 {[%clk 0:02:49]}  Qb6 {[%clk 0:01:25]} 16. b3 {[%clk 0:02:40]}  Rad8 {[%clk 0:01:21]} 17. Qh5 {[%clk 0:02:36]}  Bg6 {[%clk 0:01:09]} 18. Qf3 {[%clk 0:02:35]}  Nd4 {[%clk 0:01:04]} 19. Qxb7 {[%clk 0:02:34]}  Qxb7 {[%clk 0:00:40]} 20. Bxb7 {[%clk 0:02:31]}  Nxc2 {[%clk 0:00:40]} 21. Nxc2 {[%clk 0:02:27]}  Bxc2 {[%clk 0:00:40]} 22. Rae1 {[%clk 0:02:24]}  Bf6 {[%clk 0:00:29]} 23. h4 {[%clk 0:02:00]}  Bd3 {[%clk 0:00:28]} 24. Rf3 {[%clk 0:01:57]}  c4 {[%clk 0:00:25]} 25. bxc4 {[%clk 0:01:53]}  Bxc4 {[%clk 0:00:25]} 26. Ra3 {[%clk 0:01:52]}  Bd5 {[%clk 0:00:24]} 27. Bxd5+ {[%clk 0:01:48]}  Rxd5 {[%clk 0:00:23]} 28. Re2 {[%clk 0:01:48]}  Bd4+ {[%clk 0:00:17]} 29. Kg2 {[%clk 0:01:48]}  Bb6 {[%clk 0:00:15]} 30. Re7 {[%clk 0:01:45]}  Rf7 {[%clk 0:00:15]} 31. Re8+ {[%clk 0:01:40]}  Rf8 {[%clk 0:00:15]} 32. Rxf8+ {[%clk 0:01:37]}  Kxf8 {[%clk 0:00:15]} 33. Kf3 {[%clk 0:01:37]}  Kf7 {[%clk 0:00:13]} 34. Ke4 {[%clk 0:01:37]}  Rd4+ {[%clk 0:00:13]} 35. Ke5 {[%clk 0:01:36]}  Rb4 {[%clk 0:00:12]} 36. Rd3 {[%clk 0:01:34]}  Bc7+ {[%clk 0:00:11]} 37. Kf5 {[%clk 0:01:34]}  Bxf4 {[%clk 0:00:10]} 38. gxf4 {[%clk 0:01:34]}  Rb5+ {[%clk 0:00:10]} 39. Kg4 {[%clk 0:01:32]}  Ra5 {[%clk 0:00:11]} 40. a3 {[%clk 0:01:31]}  h5+ {[%clk 0:00:10]} 41. Kf3 {[%clk 0:01:30]}  Kf6 {[%clk 0:00:10]} 42. Rc3 {[%clk 0:01:13]}  Kf5 {[%clk 0:00:09]} 43. Ke3 {[%clk 0:01:12]}  g6 {[%clk 0:00:07]} 44. Kf3 {[%clk 0:01:08]}  Ra4 {[%clk 0:00:06]} 45. Rc5+ {[%clk 0:01:08]}  Kf6 {[%clk 0:00:07]} 46. Rc6+ {[%clk 0:01:05]}  Kf5 {[%clk 0:00:07]} 47. Rc5+ {[%clk 0:01:05]}  Kf6 {[%clk 0:00:07]} 48. Rc3 {[%clk 0:00:59]}  Kf5 {[%clk 0:00:07]} 49. Kg3 {[%clk 0:00:53]}  Kf6 {[%clk 0:00:08]} 50. Kf3 {[%clk 0:00:38]}  Kf5 {[%clk 0:00:08]} 1/2-1/2


[Site "https://www.chess.com"]

[Event "Titled Tuesday Blitz November 14 Early 2023"]
[White "Mejia, Cherry Ann"]
[Black "Ghosh, Chanchal Kumer"]
[WhiteFideId "5206880"]
[BlackFideId "10201858"]
[WhiteElo "2361"]
[BlackElo "2140"]
[Result "0-1"]
[Round "10"]
[TimeControl "180+1"]
[Date "2023.11.14"]
[WhiteClock "0:01:36"]
[BlackClock "0:01:44"]
[Board "118"]

1. e4 {[%clk 0:03:00]}  c6 {[%clk 0:02:59]} 2. d4 {[%clk 0:03:00]}  d5 {[%clk 0:02:59]} 3. Nd2 {[%clk 0:03:01]}  dxe4 {[%clk 0:02:58]} 4. Nxe4 {[%clk 0:03:02]}  Bf5 {[%clk 0:02:58]} 5. Ng3 {[%clk 0:03:02]}  Bg6 {[%clk 0:02:58]} 6. Nf3 {[%clk 0:03:02]}  h6 {[%clk 0:02:52]} 7. h4 {[%clk 0:03:02]}  e6 {[%clk 0:02:51]} 8. h5 {[%clk 0:03:02]}  Bh7 {[%clk 0:02:51]} 9. Bd3 {[%clk 0:03:03]}  Bxd3 {[%clk 0:02:50]} 10. Qxd3 {[%clk 0:03:04]}  Nf6 {[%clk 0:02:51]} 11. Bd2 {[%clk 0:03:04]}  Nbd7 {[%clk 0:02:51]} 12. O-O-O {[%clk 0:03:04]}  Be7 {[%clk 0:02:50]} 13. Ne4 {[%clk 0:03:04]}  Qc7 {[%clk 0:02:46]} 14. Kb1 {[%clk 0:02:59]}  O-O-O {[%clk 0:02:46]} 15. c4 {[%clk 0:02:58]}  e5 {[%clk 0:02:34]} 16. Nxf6 {[%clk 0:02:49]}  Bxf6 {[%clk 0:02:30]} 17. d5 {[%clk 0:02:44]}  Kb8 {[%clk 0:02:17]} 18. d6 {[%clk 0:02:31]}  Qb6 {[%clk 0:02:14]} 19. Bc3 {[%clk 0:02:23]}  e4 {[%clk 0:02:04]} 20. Bxf6 {[%clk 0:01:53]}  exd3 {[%clk 0:02:02]} 21. Bxd8 {[%clk 0:01:53]}  Rxd8 {[%clk 0:01:56]} 22. Rxd3 {[%clk 0:01:53]}  Qxf2 {[%clk 0:01:56]} 23. Re1 {[%clk 0:01:46]}  Qxg2 {[%clk 0:01:51]} 24. Rb3 {[%clk 0:01:36]}  Nc5 {[%clk 0:01:44]} 0-1


[Site "https://www.chess.com"]

[Event "Titled Tuesday Blitz November 14 Early 2023"]
[White "Manon-og, Ramon Jr."]
[Black "Kleiman, Jake"]
[WhiteFideId "5200776"]
[BlackFideId "2020041"]
[WhiteElo "2331"]
[BlackElo "2590"]
[Result "0-1"]
[Round "10"]
[TimeControl "180+1"]
[Date "2023.11.14"]
[WhiteClock "0:00:06"]
[BlackClock "0:00:08"]
[Board "119"]

1. e4 {[%clk 0:02:59]}  h5 {[%clk 0:02:58]} 2. d4 {[%clk 0:02:58]}  h4 {[%clk 0:02:57]} 3. Nc3 {[%clk 0:02:57]}  d6 {[%clk 0:02:56]} 4. h3 {[%clk 0:02:58]}  g6 {[%clk 0:02:55]} 5. Nf3 {[%clk 0:02:58]}  c6 {[%clk 0:02:53]} 6. Bg5 {[%clk 0:02:57]}  Bg7 {[%clk 0:02:47]} 7. e5 {[%clk 0:02:46]}  Qa5 {[%clk 0:02:15]} 8. exd6 {[%clk 0:02:39]}  exd6 {[%clk 0:02:10]} 9. Qe2+ {[%clk 0:02:34]}  Be6 {[%clk 0:02:09]} 10. O-O-O {[%clk 0:02:25]}  Nf6 {[%clk 0:01:55]} 11. Bxf6 {[%clk 0:01:20]}  Bxf6 {[%clk 0:01:56]} 12. d5 {[%clk 0:01:21]}  cxd5 {[%clk 0:01:55]} 13. Nxd5 {[%clk 0:01:21]}  Bg7 {[%clk 0:01:37]} 14. Qb5+ {[%clk 0:01:07]}  Qxb5 {[%clk 0:01:36]} 15. Bxb5+ {[%clk 0:01:08]}  Kd8 {[%clk 0:01:28]} 16. Rhe1 {[%clk 0:00:56]}  Nc6 {[%clk 0:01:16]} 17. Kb1 {[%clk 0:00:54]}  Bd7 {[%clk 0:00:50]} 18. Ng5 {[%clk 0:00:49]}  Rf8 {[%clk 0:00:46]} 19. Ne4 {[%clk 0:00:32]}  Nd4 {[%clk 0:00:36]} 20. Bc4 {[%clk 0:00:22]}  Nf5 {[%clk 0:00:32]} 21. Ne3 {[%clk 0:00:18]}  Rc8 {[%clk 0:00:28]} 22. Bb3 {[%clk 0:00:17]}  Kc7 {[%clk 0:00:25]} 23. Nxf5 {[%clk 0:00:16]}  Bxf5 {[%clk 0:00:26]} 24. Nxd6 {[%clk 0:00:16]}  Rcd8 {[%clk 0:00:22]} 25. Re7+ {[%clk 0:00:16]}  Kc6 {[%clk 0:00:21]} 26. a4 {[%clk 0:00:12]}  Rxd6 {[%clk 0:00:20]} 27. Rde1 {[%clk 0:00:12]}  Be6 {[%clk 0:00:18]} 28. Re4 {[%clk 0:00:11]}  Bxb3 {[%clk 0:00:18]} 29. cxb3 {[%clk 0:00:12]}  a5 {[%clk 0:00:16]} 30. b4 {[%clk 0:00:11]}  Rd2 {[%clk 0:00:13]} 31. Re3 {[%clk 0:00:07]}  Rxb2+ {[%clk 0:00:12]} 32. Kc1 {[%clk 0:00:08]}  Rxb4 {[%clk 0:00:13]} 33. Rc3+ {[%clk 0:00:08]}  Kb6 {[%clk 0:00:13]} 34. Rcc7 {[%clk 0:00:08]}  Ka6 {[%clk 0:00:11]} 35. Rxf7 {[%clk 0:00:08]}  Rxf7 {[%clk 0:00:08]} 36. Rxf7 {[%clk 0:00:09]}  Bh6+ {[%clk 0:00:09]} 37. Kc2 {[%clk 0:00:09]}  Bf4 {[%clk 0:00:09]} 38. Rf6+ {[%clk 0:00:08]}  Ka7 {[%clk 0:00:08]} 39. Rxg6 {[%clk 0:00:09]}  Be5 {[%clk 0:00:08]} 40. g3 {[%clk 0:00:10]}  hxg3 {[%clk 0:00:08]} 41. fxg3 {[%clk 0:00:10]}  Rxa4 {[%clk 0:00:08]} 42. h4 {[%clk 0:00:10]}  Ra3 {[%clk 0:00:08]} 43. h5 {[%clk 0:00:10]}  Rxg3 {[%clk 0:00:09]} 44. Re6 {[%clk 0:00:09]}  Bd4 {[%clk 0:00:08]} 45. h6 {[%clk 0:00:10]}  Rh3 {[%clk 0:00:08]} 46. Kd2 {[%clk 0:00:10]}  a4 {[%clk 0:00:08]} 47. Kc2 {[%clk 0:00:10]}  a3 {[%clk 0:00:08]} 48. Kb1 {[%clk 0:00:06]}  Rh2 {[%clk 0:00:08]} 0-1


[Site "https://www.chess.com"]

[Event "Titled Tuesday Blitz November 14 Early 2023"]
[White "Mazurkiewicz, Michal"]
[Black "rikchessmx"]
[WhiteFideId "1124943"]
[WhiteElo "2428"]
[BlackElo "2321"]
[Result "1/2-1/2"]
[Round "10"]
[TimeControl "180+1"]
[Date "2023.11.14"]
[WhiteClock "0:00:05"]
[BlackClock "0:00:34"]
[Board "121"]

1. e4 {[%clk 0:03:00]}  c5 {[%clk 0:02:20]} 2. Nf3 {[%clk 0:03:00]}  e6 {[%clk 0:02:21]} 3. d3 {[%clk 0:03:00]}  a6 {[%clk 0:02:21]} 4. g3 {[%clk 0:02:59]}  b5 {[%clk 0:02:21]} 5. Bg2 {[%clk 0:02:59]}  Bb7 {[%clk 0:02:22]} 6. O-O {[%clk 0:02:59]}  d6 {[%clk 0:02:22]} 7. c3 {[%clk 0:02:59]}  Nd7 {[%clk 0:02:22]} 8. Re1 {[%clk 0:03:00]}  Ngf6 {[%clk 0:02:22]} 9. Nbd2 {[%clk 0:02:56]}  Qc7 {[%clk 0:02:22]} 10. d4 {[%clk 0:02:54]}  Be7 {[%clk 0:02:22]} 11. e5 {[%clk 0:02:49]}  Nd5 {[%clk 0:02:19]} 12. exd6 {[%clk 0:02:48]}  Bxd6 {[%clk 0:02:19]} 13. Ne4 {[%clk 0:02:49]}  Be7 {[%clk 0:02:19]} 14. a4 {[%clk 0:02:41]}  O-O {[%clk 0:02:14]} 15. Qe2 {[%clk 0:02:39]}  c4 {[%clk 0:02:11]} 16. h4 {[%clk 0:02:38]}  h6 {[%clk 0:02:06]} 17. h5 {[%clk 0:02:32]}  N7f6 {[%clk 0:02:05]} 18. Ne5 {[%clk 0:02:30]}  Nxe4 {[%clk 0:01:59]} 19. Bxe4 {[%clk 0:02:30]}  Nf6 {[%clk 0:02:00]} 20. Bxb7 {[%clk 0:02:26]}  Qxb7 {[%clk 0:01:59]} 21. Ng4 {[%clk 0:02:06]}  Kh7 {[%clk 0:01:37]} 22. Bf4 {[%clk 0:01:05]}  Qd5 {[%clk 0:01:10]} 23. Be5 {[%clk 0:01:01]}  Nd7 {[%clk 0:01:10]} 24. Qc2+ {[%clk 0:00:26]}  Kg8 {[%clk 0:01:06]} 25. Ne3 {[%clk 0:00:09]}  Qc6 {[%clk 0:01:04]} 26. Bf4 {[%clk 0:00:09]}  Nf6 {[%clk 0:01:02]} 27. Qe2 {[%clk 0:00:07]}  Bd6 {[%clk 0:01:00]} 28. Bxd6 {[%clk 0:00:06]}  Qxd6 {[%clk 0:01:00]} 29. Ng4 {[%clk 0:00:07]}  Nxg4 {[%clk 0:00:59]} 30. Qxg4 {[%clk 0:00:08]}  Qd5 {[%clk 0:00:59]} 31. Re5 {[%clk 0:00:08]}  Qc6 {[%clk 0:00:59]} 32. Qe4 {[%clk 0:00:06]}  Qxe4 {[%clk 0:00:58]} 33. Rxe4 {[%clk 0:00:07]}  Rfb8 {[%clk 0:00:57]} 34. Re5 {[%clk 0:00:08]}  bxa4 {[%clk 0:00:56]} 35. Rxa4 {[%clk 0:00:09]}  Rxb2 {[%clk 0:00:56]} 36. Rxc4 {[%clk 0:00:09]}  Rb3 {[%clk 0:00:56]} 37. Rec5 {[%clk 0:00:08]}  a5 {[%clk 0:00:55]} 38. Ra4 {[%clk 0:00:08]}  Ra7 {[%clk 0:00:53]} 39. Kf1 {[%clk 0:00:08]}  Rab7 {[%clk 0:00:52]} 40. Raxa5 {[%clk 0:00:07]}  Rb2 {[%clk 0:00:51]} 41. Ra8+ {[%clk 0:00:07]}  Kh7 {[%clk 0:00:50]} 42. Rcc8 {[%clk 0:00:08]}  g6 {[%clk 0:00:49]} 43. Rh8+ {[%clk 0:00:08]}  Kg7 {[%clk 0:00:49]} 44. Rag8+ {[%clk 0:00:09]}  Kf6 {[%clk 0:00:49]} 45. hxg6 {[%clk 0:00:08]}  fxg6 {[%clk 0:00:48]} 46. Rxh6 {[%clk 0:00:09]}  Rc2 {[%clk 0:00:47]} 47. Rgxg6+ {[%clk 0:00:08]}  Kf5 {[%clk 0:00:47]} 48. Rf6+ {[%clk 0:00:08]}  Ke4 {[%clk 0:00:46]} 49. Rxe6+ {[%clk 0:00:09]}  Kd3 {[%clk 0:00:47]} 50. Re3+ {[%clk 0:00:08]}  Kc4 {[%clk 0:00:46]} 51. Rc6+ {[%clk 0:00:07]}  Kd5 {[%clk 0:00:46]} 52. Rc5+ {[%clk 0:00:08]}  Kd6 {[%clk 0:00:47]} 53. Kg2 {[%clk 0:00:08]}  Rbb2 {[%clk 0:00:47]} 54. Rf3 {[%clk 0:00:08]}  Re2 {[%clk 0:00:47]} 55. Rh5 {[%clk 0:00:08]}  Ke6 {[%clk 0:00:44]} 56. c4 {[%clk 0:00:08]}  Rbd2 {[%clk 0:00:43]} 57. d5+ {[%clk 0:00:08]}  Kd6 {[%clk 0:00:43]} 58. Rh6+ {[%clk 0:00:08]}  Ke5 {[%clk 0:00:42]} 59. Re6+ {[%clk 0:00:08]}  Kd4 {[%clk 0:00:42]} 60. Rxe2 {[%clk 0:00:09]}  Rxe2 {[%clk 0:00:43]} 61. d6 {[%clk 0:00:09]}  Kc5 {[%clk 0:00:43]} 62. d7 {[%clk 0:00:10]}  Rd2 {[%clk 0:00:44]} 63. Rf7 {[%clk 0:00:10]}  Rd6 {[%clk 0:00:44]} 64. g4 {[%clk 0:00:10]}  Kxc4 {[%clk 0:00:44]} 65. Kg3 {[%clk 0:00:10]}  Kd5 {[%clk 0:00:45]} 66. g5 {[%clk 0:00:10]}  Ke6 {[%clk 0:00:46]} 67. Rh7 {[%clk 0:00:10]}  Kf5 {[%clk 0:00:47]} 68. Rf7+ {[%clk 0:00:07]}  Kxg5 {[%clk 0:00:46]} 69. f4+ {[%clk 0:00:08]}  Kg6 {[%clk 0:00:46]} 70. Re7 {[%clk 0:00:08]}  Kf6 {[%clk 0:00:46]} 71. Rh7 {[%clk 0:00:08]}  Kg6 {[%clk 0:00:45]} 72. Re7 {[%clk 0:00:06]}  Kf6 {[%clk 0:00:45]} 73. Re5 {[%clk 0:00:05]}  Rxd7 {[%clk 0:00:45]} 74. Ra5 {[%clk 0:00:05]}  Rd3+ {[%clk 0:00:45]} 75. Kg4 {[%clk 0:00:06]}  Rd1 {[%clk 0:00:46]} 76. Ra6+ {[%clk 0:00:06]}  Kf7 {[%clk 0:00:46]} 77. Kf5 {[%clk 0:00:07]}  Rd5+ {[%clk 0:00:46]} 78. Ke4 {[%clk 0:00:07]}  Rb5 {[%clk 0:00:46]} 79. Rd6 {[%clk 0:00:06]}  Rb1 {[%clk 0:00:46]} 80. Rd5 {[%clk 0:00:06]}  Kf6 {[%clk 0:00:45]} 81. Rd6+ {[%clk 0:00:06]}  Kf7 {[%clk 0:00:46]} 82. Kf5 {[%clk 0:00:06]}  Rb5+ {[%clk 0:00:44]} 83. Kg4 {[%clk 0:00:07]}  Ke7 {[%clk 0:00:43]} 84. Rh6 {[%clk 0:00:07]}  Kf7 {[%clk 0:00:43]} 85. Rh5 {[%clk 0:00:07]}  Rb1 {[%clk 0:00:43]} 86. Re5 {[%clk 0:00:08]}  Ra1 {[%clk 0:00:41]} 87. Kf5 {[%clk 0:00:08]}  Kg7 {[%clk 0:00:41]} 88. Re7+ {[%clk 0:00:08]}  Kf8 {[%clk 0:00:41]} 89. Rb7 {[%clk 0:00:07]}  Ra5+ {[%clk 0:00:40]} 90. Kg6 {[%clk 0:00:06]}  Ra6+ {[%clk 0:00:40]} 91. Kg5 {[%clk 0:00:07]}  Ra1 {[%clk 0:00:40]} 92. f5 {[%clk 0:00:07]}  Ra5 {[%clk 0:00:39]} 93. Rc7 {[%clk 0:00:06]}  Ra6 {[%clk 0:00:37]} 94. Rd7 {[%clk 0:00:06]}  Ke8 {[%clk 0:00:36]} 95. Rh7 {[%clk 0:00:05]}  Kf8 {[%clk 0:00:36]} 96. Rh6 {[%clk 0:00:06]}  Ra1 {[%clk 0:00:35]} 97. Rb6 {[%clk 0:00:05]}  Ra7 {[%clk 0:00:34]} 98. Kf6 {[%clk 0:00:05]}  Rf7+ {[%clk 0:00:34]} 99. Kg6 {[%clk 0:00:05]}  Rg7+ {[%clk 0:00:34]} 100. Kh6 {[%clk 0:00:05]}  Rc7 {[%clk 0:00:34]} 101. Kg6 {[%clk 0:00:05]}  Rg7+ {[%clk 0:00:33]} 102. Kf6 {[%clk 0:00:05]}  Rf7+ {[%clk 0:00:33]} 103. Ke6 {[%clk 0:00:05]}  Re7+ {[%clk 0:00:34]} 104. Kf6 {[%clk 0:00:05]}  Rf7+ {[%clk 0:00:34]} 1/2-1/2


[Site "https://www.chess.com"]

[Event "Titled Tuesday Blitz November 14 Early 2023"]
[White "Suspenser17"]
[Black "Osmonbekov, Talaibek"]
[BlackFideId "2017253"]
[WhiteElo "2402"]
[BlackElo "2314"]
[Result "1-0"]
[Round "10"]
[TimeControl "180+1"]
[Date "2023.11.14"]
[WhiteClock "0:01:15"]
[BlackClock "0:00:00"]
[Board "123"]

1. e4 {[%clk 0:03:00]}  c5 {[%clk 0:02:59]} 2. c3 {[%clk 0:03:00]}  d5 {[%clk 0:02:59]} 3. exd5 {[%clk 0:03:01]}  Qxd5 {[%clk 0:02:59]} 4. Nf3 {[%clk 0:03:00]}  Nf6 {[%clk 0:02:59]} 5. Na3 {[%clk 0:03:01]}  Bf5 {[%clk 0:02:46]} 6. Bc4 {[%clk 0:02:54]}  Qe4+ {[%clk 0:02:34]} 7. Be2 {[%clk 0:02:53]}  Nc6 {[%clk 0:02:24]} 8. O-O {[%clk 0:02:51]}  O-O-O {[%clk 0:02:17]} 9. d3 {[%clk 0:02:50]}  Qd5 {[%clk 0:02:14]} 10. Qa4 {[%clk 0:02:48]}  Bxd3 {[%clk 0:01:46]} 11. Bxd3 {[%clk 0:02:30]}  Qxd3 {[%clk 0:01:45]} 12. Be3 {[%clk 0:02:31]}  e6 {[%clk 0:01:04]} 13. Rad1 {[%clk 0:02:30]}  Qa6 {[%clk 0:01:04]} 14. Rxd8+ {[%clk 0:02:29]}  Nxd8 {[%clk 0:00:59]} 15. Qxa6 {[%clk 0:02:20]}  bxa6 {[%clk 0:01:00]} 16. Rd1 {[%clk 0:02:20]}  Be7 {[%clk 0:00:58]} 17. Ne5 {[%clk 0:02:18]}  Nd5 {[%clk 0:00:49]} 18. Nac4 {[%clk 0:02:00]}  f6 {[%clk 0:00:45]} 19. Nd3 {[%clk 0:02:00]}  Nxe3 {[%clk 0:00:44]} 20. Nxe3 {[%clk 0:01:58]}  Kc7 {[%clk 0:00:24]} 21. Nf4 {[%clk 0:01:55]}  Bd6 {[%clk 0:00:21]} 22. Nh5 {[%clk 0:01:40]}  Rg8 {[%clk 0:00:19]} 23. Nc4 {[%clk 0:01:40]}  Be7 {[%clk 0:00:18]} 24. Nf4 {[%clk 0:01:40]}  g5 {[%clk 0:00:15]} 25. Nh5 {[%clk 0:01:37]}  Nc6 {[%clk 0:00:13]} 26. Re1 {[%clk 0:01:31]}  Kd7 {[%clk 0:00:12]} 27. g4 {[%clk 0:01:29]}  Rb8 {[%clk 0:00:08]} 28. Ng3 {[%clk 0:01:29]}  Ne5 {[%clk 0:00:03]} 29. Nxe5+ {[%clk 0:01:27]}  fxe5 {[%clk 0:00:03]} 30. b3 {[%clk 0:01:27]}  c4 {[%clk 0:00:03]} 31. b4 {[%clk 0:01:21]}  a5 {[%clk 0:00:02]} 32. a3 {[%clk 0:01:20]}  axb4 {[%clk 0:00:01]} 33. axb4 {[%clk 0:01:21]}  a5 {[%clk 0:00:02]} 34. bxa5 {[%clk 0:01:20]}  Rb3 {[%clk 0:00:00]} 35. a6 {[%clk 0:01:15]} 1-0


[Site "https://www.chess.com"]